[Event "3rd Manaus Open 2024"]
[Site "Manaus"]
[Date "2024.10.15"]
[Round "6.6"]
[White "Di Berardino, Diego Rafael"]
[Black "Piccoli, Lucas Fonseca"]
[Result "1/2-1/2"]
[ECO "E47"]
[WhiteElo "2479"]
[BlackElo "2266"]
[Annotator "TA"]
[PlyCount "68"]
[EventDate "2024.10.05"]
[EventType "swiss"]
[EventCountry "BRA"]
[SourceTitle "playchess.com"]
[Source "ChessBase"]
[SourceQuality "1"]
[TimeControl "5400+30"]

{[%evp 12,68,15,8,4,12,12,2,36,0,18,5,6,0,0,-18,-23,-9,0,0,1,0,0,-17,-27,-23,-34,-58,-45,-48,-57,-45,-23,-43,-31,-32,-31,-52,0,-22,0,-21,-20,-38,-40,-45,-51,-82,0,0,0,0,0,0,0,0,0,0,0]} 1. d4 {[%emt 0:00:02]} Nf6 {[%emt 0:02:47]} 2. c4 {[%emt 0:00:07]} e6 {[%emt 0:00:07]} 3. Nc3 {[%emt 0:00:30]} Bb4 {[%emt 0:00:06]} 4. e3 {[%emt 0:00:32]} O-O {[%emt 0:00:10]} 5. Bd3 {[%emt 0:00:04]} c5 {[%emt 0:00:08]} 6. Nge2 {[%emt 0:00:24]} cxd4 {[%emt 0:00:11]} 7. exd4 {[%emt 0:00:05]} d5 {[%emt 0:00:06]} 8. cxd5 {[%emt 0:00:54]} Qxd5 {[%emt 0:00:07]} 9. O-O {[%emt 0:02:33]} Qd7 {[%emt 0:00:04]} 10. Ne4 {[%emt 1:30:19]} Be7 {[%emt 0:13:47]} 11. Qc2 {[%emt 0:00:00] Droht stark Nxf6+.} h6 {[%emt 0:02:08]} 12. Be3 {[%emt 0:00:00]} Nc6 {[%emt 0:00:31]} 13. Qd2 {[%emt 0:00:00]} Ng4 {[%emt 0:13:43]} 14. Rad1 {[%emt 0:00:00]} Nxe3 {[%emt 0:04:50]} 15. Qxe3 {[%emt 0:00:00]} b6 {[%emt 0:02:58]} 16. N4c3 {[%emt 0:00:00][%cal Od4d5] d5! wäre nun fies.} Nb4 {[%emt 0:11:48]} 17. Bb1 {[%emt 0:00:00]} Bb7 {[%emt 0:00:55] Verhindert Qe4} 18. a3 {[%emt 0:00:00]} Nd5 {[%emt 0:00:20]} 19. Qd3 {[%emt 0:00:00]} g6 {[%emt 0:05:35]} 20. Qg3 {[%emt 0:00:00]} Bf6 {[%emt 0:05:26]} 21. h4 {[%emt 0:00:00]} Nxc3 {[%emt 0:03:52]} 22. bxc3 {[%emt 0:00:00]} Ba6 {[%emt 0:05:06] Ein starkes Läuferpaar.} 23. Rfe1 {[%emt 0:00:00]} Bxe2 {[%emt 0:04:44]} 24. Rxe2 {[%emt 0:00:00]} Qb5 {[%emt 0:08:43]} (24... Rac8 $15) 25. Rde1 {[%emt 0:00:42][%cal Oe2e6] [#] Und Rxe6! würde nun gewinnen.} Bg7 {[%emt 0:02:47]} 26. Re3 {[%emt 0:01:26]} Rac8 {[%emt 0:01:02]} 27. Qf3 {[%emt 0:03:41]} Qa5 {[%emt 0:01:12][%cal Oh6h5]} 28. Be4 {[%emt 0:01:38][%cal Bb1e4,Be4d5,Bd5f7][%mdl 32]} h5 {[%emt 0:03:00]} 29. d5 {[%emt 0:00:56]} exd5 {[%emt 0:01:29]} (29... Qxa3 30. dxe6 fxe6 31. Qg3 Rxc3 32. Qxg6 (32. Bxg6 Rxe3 33. Rxe3 Qa2 $11) 32... Rxe3 33. Qh7+ (33. Rxe3 Qa1+ 34. Bb1 Qb2 $14) (33. fxe3 Qc3 $11) (33. Qxe6+ Kh8 $11) 33... Kf7 34. Rxe3 (34. Qxh5+ Ke7 $15) 34... Qa1+ 35. Kh2 $18) (29... Bxc3 30. Rd1 exd5 (30... Qxa3 $2 31. dxe6 fxe6 32. Qg3 $18) 31. Bxd5 $11) ({Günstiger ist} 29... f5 $17 30. Bc2 Qxd5 (30... exd5 31. Bb3 $11) 31. Qxd5 exd5) 30. Bxd5 $11 {[%emt 0:00:12] Die Stellung ist ausgeglichen.} Rxc3 {[%emt 0:01:13]} 31. Rxc3 {[%emt 0:00:49]} Qxc3 {[%emt 0:02:29]} ({Ein No Go ist} 31... Bxc3 $6 32. Re8 $16) 32. Bxf7+ {[%emt 0:01:36]} Kh7 {[%emt 0:05:06]} 33. Qxc3 Bxc3 34. Re7 {[%emt 0:01:00]} a5 {[%emt 0:01:00] Gewichteter Fehlerwert: Weiß=0.09 (makellos) /Schwarz=0.11 (sehr präzise) .  Fehler:       	---       	Schwarz=2     Ungenau:       	Weiß=2     	Schwarz=1     OK:         	Weiß=11    	Schwarz=11} 1/2-1/2

[Event "3rd Manaus Open 2024"]
[Site "Manaus"]
[Date "2024.10.15"]
[Round "6.7"]
[White "Filgueiras, Nathan Felipe"]
[Black "Santiago, Yago De Moura"]
[Result "1/2-1/2"]
[ECO "C07"]
[WhiteElo "2343"]
[BlackElo "2460"]
[Annotator "TA"]
[PlyCount "38"]
[EventDate "2024.10.05"]
[EventType "swiss"]
[EventCountry "BRA"]
[SourceTitle "playchess.com"]
[Source "ChessBase"]
[SourceQuality "1"]
[TimeControl "5400+30"]

{[%evp 10,38,37,13,29,22,76,16,45,14,25,5,25,19,10,-9,41,41,42,34,22,52,188,162,231,120,134,29,50,-157,-138]} 1. e4 {[%emt 0:06:51]} e6 {[%emt 0:00:08]} 2. d4 {[%emt 0:00:16]} d5 {[%emt 0:00:09]} 3. Nd2 {[%emt 0:00:05]} c5 {[%emt 0:00:17]} 4. exd5 {[%emt 0:00:06]} Qxd5 {[%emt 0:00:05]} 5. Ngf3 {[%emt 0:00:06]} cxd4 {[%emt 0:00:08]} 6. Bc4 {[%emt 0:00:04]} Qd7 {[%emt 0:03:06] C07: Frans Tarrasch: 3...c5, 4 Pgf3 en 4 exd5 Dxd5.} 7. O-O {[%emt 0:00:14]} a6 {[%emt 0:00:39] [#] Fout (0.5)} (7... Nc6 $11) {Wit zou moeten proberen} 8. Nb3 {[%emt 0:00:58] Fout (0.6)} (8. Ne5 $1 $16 {[%cal Re5d7]} Qc7 9. Re1) 8... Nc6 {[%emt 0:00:27] Onnauwkeurig. De stelling is in evenwicht.} 9. Nbxd4 {[%emt 0:00:06] Onnauwkeurig} Nxd4 {[%emt 0:00:20]} 10. Nxd4 {[%emt 0:00:12]} Qc7 {[%emt 0:00:44]} 11. Bd3 {[%emt 0:01:35] OK maakt 11.Bb3 minder populair.} Bd6 {[%emt 0:01:00][%cal Rd6h2] OK} 12. Re1 {[%emt 1:25:57] OK} {Zwart zou moeten spelen} Bxh2+ {[%emt 0:17:51] Fout (0.5)} (12... Nf6 $11) 13. Kh1 $14 {[%emt 0:00:00] met als doel voor g3. Beste (Gemakkelijk)} Be5 {[%emt 0:00:11] [#] OK} 14. Nxe6 {[%emt 0:00:00] Briljant} Bxe6 {[%emt 0:03:40]} 15. Qh5 {[%emt 0:00:00][%csl LRe5,LRh7] Beste (Gemakkelijk)} Bd6 $146 {[%emt 0:19:54] Fout (1.4)} ({Predecessor:} 15... Nf6 16. Qxe5 Qxe5 17. Rxe5 O-O 18. Re1 Rac8 19. Bd2 Rfd8 20. Bg5 Rd5 21. Bxf6 gxf6 {½-½ Piorun,K (2623)-Shevchenko,K (2645) POL-chT Ekstraliga 2022 (7.3)}) 16. Rxe6+ $18 {[%emt 0:00:00] Beste (Gemakkelijk)} Kf8 {[%emt 0:00:05] [#] pakt misschien beter uit. Fout (0.7)} (16... Ne7) {Wit moet spelen} 17. Re1 {[%emt 0:00:00] Fout (1.1)} (17. Qf3 $1 $18) 17... Nf6 $16 {[%emt 0:00:10] OK} {Beter is} 18. Qf5 {[%emt 0:00:00] Wit is actiever. Fout (1.1)} (18. Qh4 $16) 18... h5 $1 $11 {[%emt 0:00:19] Sterk} 19. f3 $2 {[%emt 0:00:00] houdt voordeel. Voorkomt Ng4. Fout (2.1)} (19. Re2 $14) 19... h4 {[%emt 0:02:58] Blunder waarde: Wit=0.57/Zwart=0.32. OK.  Fout:        	Wit=4      	Zwart=4      Onnauwkeurig:    	Wit=1      	Zwart=1      OK:         	Wit=2      	Zwart=4      Beste:        	Wit=3      	---        Sterk:        	---       	Zwart=1      Briljant:      	Wit=1      	---} 1/2-1/2

[Event "3rd Manaus Open 2024"]
[Site "Manaus"]
[Date "2024.10.15"]
[Round "6.8"]
[White "Rodriguez Vila, Andres"]
[Black "Ribeiro, Matheus Mendes Domin"]
[Result "1-0"]
[ECO "B70"]
[WhiteElo "2419"]
[BlackElo "2250"]
[Annotator "RC"]
[PlyCount "121"]
[EventDate "2024.10.05"]
[EventType "swiss"]
[EventCountry "BRA"]
[SourceTitle "playchess.com"]
[Source "ChessBase"]
[SourceQuality "1"]
[TimeControl "5400+30"]

1. e4 {[%emt 0:00:57]} c5 {[%emt 0:05:47]} 2. Nf3 {[%emt 0:00:26]} d6 {[%emt 0:00:17]} 3. d4 {[%emt 0:01:07]} cxd4 {[%emt 0:00:07]} 4. Nxd4 {[%emt 0:00:03]} Nf6 {[%emt 0:00:10]} 5. Nc3 {[%emt 0:00:03]} Nc6 {[%emt 0:02:05]} 6. g3 {[%emt 0:01:04]} g6 {[%emt 0:01:05]} 7. Nde2 {[%emt 0:01:12]} Bg7 {[%emt 0:00:57]} 8. Bg2 {[%emt 0:00:05]} O-O {[%emt 0:00:34]} 9. O-O {[%emt 0:00:06]} Bd7 {[%emt 0:07:10]} 10. h3 {[%emt 0:00:06]} Rc8 {[%emt 0:01:26]} 11. Nd5 {[%emt 0:00:09]} Nxd5 {[%emt 0:04:16]} 12. exd5 {[%emt 0:00:09]} Ne5 {[%emt 0:00:04]} 13. a4 {[%emt 0:00:05]} Qc7 {[%emt 0:02:56]} 14. c3 {[%emt 0:03:19]} Qc4 {[%emt 0:07:22]} 15. b3 {[%emt 0:00:11]} Qa6 {[%emt 0:02:43]} 16. Be3 {[%emt 0:04:29]} Bf5 {[%emt 0:05:25]} 17. c4 {[%emt 0:03:35]} Qa5 {[%emt 0:10:13]} 18. Nd4 {[%emt 0:01:58]} a6 {[%emt 0:04:29]} 19. Re1 {[%emt 0:26:31]} Qc3 {[%emt 0:12:46]} 20. Rc1 {[%emt 0:02:14]} Qd3 {[%emt 0:01:56]} 21. g4 {[%emt 0:53:11]} Be4 {[%emt 0:14:16]} 22. f3 {[%emt 0:00:00]} Bxd5 {[%emt 0:04:14]} 23. cxd5 {[%emt 0:00:00]} Rxc1 {[%emt 0:00:04]} 24. Qxc1 {[%emt 0:00:00]} Nxg4 {[%emt 0:00:09]} 25. fxg4 {[%emt 0:00:00]} Bxd4 {[%emt 0:00:05]} 26. Bxd4 {[%emt 0:00:00]} Qxd4+ {[%emt 0:00:04]} 27. Qe3 {[%emt 0:00:00]} Qb4 {[%emt 0:00:02]} 28. Qxe7 {[%emt 0:00:00]} Rc8 {[%emt 0:01:10]} 29. Rf1 {[%emt 0:00:00]} Rf8 {[%emt 0:00:26]} 30. a5 {[%emt 0:00:00]} b6 {[%emt 0:01:15]} 31. axb6 {[%emt 0:00:00]} Qxb6+ {[%emt 0:00:06]} 32. Kh2 {[%emt 0:00:00]} a5 {[%emt 0:00:33]} 33. Rf3 {[%emt 0:00:00]} Qc5 {[%emt 0:00:25]} 34. Rf6 {[%emt 0:00:00]} Qb4 {[%emt 0:00:34]} 35. Qxd6 {[%emt 0:00:00]} Qxb3 {[%emt 0:00:05]} 36. Rf3 {[%emt 0:00:00]} Qb2 {[%emt 0:01:40]} 37. Qf4 {[%emt 0:00:00]} a4 {[%emt 0:01:47]} 38. Qxa4 {[%emt 0:00:00]} Qe5+ {[%emt 0:00:06]} 39. Rg3 {[%emt 0:00:00]} Rc8 {[%emt 0:01:23]} 40. Qe4 {[%emt 0:00:00]} Qd6 {[%emt 0:00:22]} 41. h4 {[%emt 0:00:00]} Rc3 {[%emt 0:01:52]} 42. Qe8+ {[%emt 0:00:00]} Kg7 {[%emt 0:00:06]} 43. Qe1 {[%emt 0:00:00]} Rc2 {[%emt 0:00:49]} 44. Qd1 {[%emt 0:00:00]} Qc5 {[%emt 0:01:06]} 45. d6 {[%emt 0:00:00]} Rc1 {[%emt 0:00:06]} 46. Qd2 {[%emt 0:00:00]} Qg1+ {[%emt 0:00:27]} 47. Kh3 {[%emt 0:00:00]} Rd1 {[%emt 0:00:03]} 48. Qc3+ {[%emt 0:00:00]} Qd4 {[%emt 0:00:06]} 49. Qb3 {[%emt 0:00:00]} Qxd6 {[%emt 0:00:11]} 50. Rf3 {[%emt 0:00:00]} f6 {[%emt 0:01:50]} 51. Qb7+ {[%emt 0:00:00]} Qd7 {[%emt 0:01:36]} 52. Rb3 {[%emt 0:00:00]} Qxb7 {[%emt 0:03:07]} 53. Rxb7+ {[%emt 0:00:00]} Kh6 {[%emt 0:00:15]} 54. Kg3 {[%emt 0:00:00]} Rd3+ {[%emt 0:01:33]} 55. Bf3 {[%emt 0:00:00]} Rd6 {[%emt 0:01:31]} 56. Be4 {[%emt 0:00:00]} Rd8 {[%emt 0:00:54]} 57. Rf7 {[%emt 0:00:00]} Re8 {[%emt 0:01:47]} 58. Kf4 {[%emt 0:00:00]} g5+ {[%emt 0:00:05]} 59. Kf3 {[%emt 0:00:00]} Rh8 {[%emt 0:00:41]} 60. h5 {[%emt 0:00:00]} f5 {[%emt 0:00:15]} 61. Bxf5 {[%emt 0:00:00]} 1-0

[Event "3rd Manaus Open 2024"]
[Site "Manaus"]
[Date "2024.10.15"]
[Round "6.9"]
[White "Cubas, Jose Fernando"]
[Black "Gauche, Charles"]
[Result "1-0"]
[ECO "C77"]
[WhiteElo "2412"]
[BlackElo "2168"]
[Annotator "RC"]
[PlyCount "49"]
[EventDate "2024.10.05"]
[EventType "swiss"]
[EventCountry "BRA"]
[SourceTitle "playchess.com"]
[Source "ChessBase"]
[SourceQuality "1"]
[TimeControl "5400+30"]

1. e4 {[%emt 0:01:06]} e5 {[%emt 0:00:39]} 2. Nf3 {[%emt 0:00:12]} Nc6 {[%emt 0:00:16]} 3. Bb5 {[%emt 0:00:08]} a6 {[%emt 0:00:57]} 4. Ba4 {[%emt 0:00:11]} Nf6 {[%emt 0:00:25]} 5. d4 {[%emt 0:03:46]} Nxe4 {[%emt 0:04:00]} 6. Qe2 {[%emt 0:03:53]} Nd6 {[%emt 1:27:13]} 7. dxe5 {[%emt 0:09:49]} Nb5 {[%emt 0:00:00]} 8. c3 {[%emt 0:05:11]} Be7 {[%emt 0:00:00]} 9. O-O {[%emt 0:02:36]} d6 {[%emt 0:00:00]} 10. c4 {[%emt 0:07:22]} Nba7 {[%emt 0:00:00]} 11. Rd1 {[%emt 0:00:51]} O-O {[%emt 0:00:00]} 12. Nc3 {[%emt 0:00:42]} Re8 {[%emt 0:00:00]} 13. Bc2 {[%emt 0:05:19]} Be6 {[%emt 0:00:00]} 14. Bf4 {[%emt 0:03:09]} Qc8 {[%emt 0:00:00]} 15. exd6 {[%emt 0:03:32]} cxd6 {[%emt 0:00:00]} 16. Bxd6 {[%emt 0:02:46]} Nb4 {[%emt 0:00:00]} 17. Bb3 {[%emt 0:01:22]} Bxd6 {[%emt 0:00:00]} 18. Rxd6 {[%emt 0:00:02]} Bg4 {[%emt 0:00:00]} 19. Qd1 {[%emt 0:00:44]} Qf5 {[%emt 0:00:00]} 20. a3 {[%emt 0:03:27]} Nbc6 {[%emt 0:00:00]} 21. Bc2 {[%emt 0:05:13]} Qh5 {[%emt 0:00:00]} 22. Be4 {[%emt 0:02:01]} Ne5 {[%emt 0:00:00]} 23. Qd5 {[%emt 0:00:09]} Nc8 {[%emt 0:00:00]} 24. Rd8 {[%emt 0:01:59]} Nb6 {[%emt 0:00:00]} 25. Rd6 {[%emt 0:37:30]} 1-0

[Event "3rd Manaus Open 2024"]
[Site "Manaus"]
[Date "2024.10.15"]
[Round "6.10"]
[White "Flom, Gabriel"]
[Black "Acosta, Pablo Alejandro"]
[Result "1-0"]
[ECO "C69"]
[WhiteElo "2460"]
[BlackElo "2032"]
[Annotator "TA"]
[PlyCount "75"]
[EventDate "2024.10.05"]
[EventType "swiss"]
[EventCountry "BRA"]
[SourceTitle "playchess.com"]
[Source "ChessBase"]
[SourceQuality "1"]
[TimeControl "5400+30"]

{[%evp 11,75,14,33,-8,39,38,39,-35,-11,-43,9,-23,30,14,250,247,237,262,269,236,302,331,414,402,409,439,460,407,454,430,707,683,693,652,669,667,719,471,414,306,309,292,627,265,594,627,629,629,943,466,487,461,461,459,466,406,545,448,442,291,878,872,29961,29962,29995,29996]} 1. e4 {[%emt 0:00:03]} e5 {[%emt 0:01:52]} 2. Nf3 {[%emt 0:00:04]} Nc6 {[%emt 0:00:06]} 3. Bb5 {[%emt 0:00:03]} a6 {[%emt 0:00:35]} 4. Bxc6 {[%emt 0:00:54]} dxc6 {[%emt 0:00:39]} 5. O-O {[%emt 0:00:09]} Bg4 {[%emt 0:00:27]} 6. d3 {[%emt 1:32:17]} f6 {[%emt 0:04:23]} 7. Be3 {[%emt 0:00:00] C69: Ruy Lopez: Ruilvariant met 5 0-0 f6.} Qd7 {[%emt 0:00:55] Fout (0.5)} (7... h5 $11) 8. h3 $14 {[%emt 0:00:00] OK} Be6 {[%emt 0:00:19]} {Wit zou moeten spelen} 9. Nc3 {[%emt 0:00:00] Fout (0.7)} (9. d4 $14) 9... c5 $15 {[%emt 0:02:40] OK} 10. a4 $146 {[%emt 0:00:00] Onnauwkeurig} ({Predecessor:} 10. Nd2 g5 11. Nc4 h5 12. a4 g4 13. h4 Nh6 14. b3 Nf7 15. Qc1 Be7 16. Qa3 {1-0 Glowinski,D (1366)-Wilshusen,H (1272) SE-2018-0-00270 2017}) {Beter is} 10... h5 {[%emt 0:05:11] Fout (0.5)} (10... Qc6 $15) 11. a5 $11 {[%emt 0:00:00] OK} {Zwart zou moeten proberen} g5 {[%emt 0:01:24] Fout (0.5)} (11... O-O-O) 12. Nd2 {[%emt 0:00:00] OK} b5 $2 {[%emt 0:09:46] en Zwart blijft veilig. Afleidend Na4. Dit kost Zwart de partij. Verliest partij (2.4)} (12... Qc6 $11) 13. axb6 $18 {[%emt 0:00:00] Beste (Gemakkelijk)} cxb6 {[%emt 0:00:10]} 14. b4 {[%emt 0:00:00]} g4 {[%emt 0:07:11] OK} 15. h4 {[%emt 0:00:00] OK} Bh6 {[%emt 1:02:22]} 16. bxc5 {[%emt 0:00:00] OK} Bxe3 {[%emt 0:00:00]} 17. fxe3 {[%emt 0:00:00]} bxc5 {[%emt 0:00:00] [#] OK} 18. Nd5 $1 {[%emt 0:00:00][%mdl 512] OK} Bxd5 {[%emt 0:00:00] OK} 19. exd5 {[%emt 0:00:00]} Qxd5 {[%emt 0:00:00]} 20. Ne4 {[%emt 0:00:00][%cal Rf1f6] Zwart moet nu Rxf6 voorkomen. OK} Qc6 {[%emt 0:00:00] Fout (2.8)} (20... Kf8 $142 21. Ra5 (21. Nxf6 Nxf6 22. Rxf6+ Kg7 $18) 21... Kg7 22. Rxc5 (22. Nxc5 Qc6 $18) 22... Qb7) 21. Ra5 {[%emt 0:00:00] Beste} Qb6 {[%emt 0:00:00]} 22. Qa1 {[%emt 0:00:00]} Rh7 {[%emt 0:00:00]} 23. Rxc5 {[%emt 0:00:00]} Re7 {[%emt 0:00:00]} 24. Qa4+ {[%emt 0:00:00]} Kf8 {[%emt 0:00:00]} 25. Kh2 {[%emt 0:09:30]} g3+ {[%emt 0:05:00] OK} 26. Kxg3 {[%emt 0:00:00]} Qe6 {[%emt 0:00:30] Fout (3.4)} (26... Kg7 27. Rf3 Raa7) 27. Qc6 {[%emt 0:00:00] Fout (3.6)} (27. Nxf6 $142 Rg7+ (27... Nxf6 $2 {slaat de verkeerde figuur.} 28. Rc6 $18) 28. Kh2 (28. Ng4+ Nf6 $18) 28... Qxf6 (28... Nxf6 $2 {verliest.} 29. Rc6 $18) 29. Kg1 (29. Rxf6+ Nxf6 30. Qc6 Ng4+ 31. Kg1 Re8 $18) (29. Qa1 Rf7 $18) 29... Qxf1+ 30. Kxf1) 27... Qg4+ $2 {[%emt 0:00:00] betere vooruitzichten. Fout (3.3)} (27... Qxc6 28. Rxc6 a5 29. Nxf6 Kg7 30. Nxh5+ Kh8) 28. Kh2 {[%emt 0:01:30][%cal Bg3h2,Bh2g1,Bg1h1][%mdl 32] EV=15.05. Goes to h1 (dbg))} Qxh4+ {[%emt 0:00:00] OK} 29. Kg1 {[%emt 0:00:00]} Raa7 {[%emt 0:00:00]} 30. Rc4 {[%emt 0:00:00]} (30. Nxf6 $142 Nxf6 31. Rxf6+ Kg7 32. Rg6+ Kf7 33. g3) 30... Kg7 {[%emt 0:00:00]} 31. Nd6 {[%emt 0:00:00]} Qg5 {[%emt 0:00:00] Zwart is zwak op de lichte velden. OK} 32. Nf5+ {[%emt 0:00:00] OK} Kh8 {[%emt 0:00:00] OK} 33. Nxe7 {[%emt 0:00:00] OK} Qxe3+ {[%emt 0:00:00] Onnauwkeurig} 34. Kh1 {[%emt 0:00:00] [#] En nu zou Nxg8 winnen.} Rxe7 {[%emt 0:00:00] OK} 35. Qxa6 {[%emt 0:00:00] Onnauwkeurig} f5 $2 {[%emt 0:00:00] Fout (5.9)} (35... e4 36. Rxe4 Rxe4 37. dxe4 Qxe4) 36. Rxf5 {[%emt 0:00:00] Beste} Ra7 {[%emt 0:00:00] Onnauwkeurig} 37. Rxh5+ {[%emt 0:00:00]} Kg7 {[%emt 0:00:00]} 38. Rg4+ {[%emt 0:00:00] Blunder waarde: Wit=0.67/Zwart=1.18.  Verliest partij:   	---       	Zwart=1      Fout:        	Wit=2      	Zwart=7      Onnauwkeurig:    	Wit=2      	Zwart=2      OK:         	Wit=9      	Zwart=9      Beste:        	Wit=3      	---} 1-0

[Event "3rd Manaus Open 2024"]
[Site "Manaus"]
[Date "2024.10.12"]
[Round "7"]
[White "Mesquita, Eduardo Barbosa"]
[Black "Veloso, Henrique Barbosa"]
[Result "1-0"]
[ECO "C77"]
[WhiteElo "1999"]
[BlackElo "2155"]
[Annotator "RC"]
[PlyCount "109"]
[EventDate "2024.10.05"]
[EventType "swiss"]
[EventCountry "BRA"]
[SourceTitle "playchess.com"]
[Source "ChessBase"]
[SourceQuality "1"]
[TimeControl "5400+30"]

1. e4 e5 2. Nf3 Nc6 3. Bb5 a6 4. Ba4 Nf6 5. d3 d6 6. c3 Bd7 7. Nbd2 g6 8. Nf1 Bg7 9. Bg5 h6 10. Bd2 O-O 11. Ng3 b5 12. Bb3 Na5 13. Bc2 c5 14. O-O Nc6 15. Qe2 Re8 16. a4 b4 17. Qd1 Rb8 18. h3 Be6 19. Be3 bxc3 20. bxc3 Qa5 21. Qd2 Kh7 22. Rfb1 Nd7 23. Qe1 d5 24. exd5 Bxd5 25. Ne4 Bf8 26. Bd2 Qc7 27. Rxb8 Rxb8 28. Rb1 Rxb1 29. Qxb1 f5 30. Ng3 Nf6 31. h4 f4 32. Ne4 Nxe4 33. dxe4 Be6 34. Bc1 c4 35. Qa1 Bc5 36. Ba3 Ba7 37. Qd1 Qb6 38. Qd2 Kg7 39. Kh2 Bb8 40. Bd6 Kf7 41. Nxe5+ Nxe5 42. Qxf4+ Bf5 43. Bxe5 Bxe5 44. Qxe5 Be6 45. Qf4+ Kg7 46. e5 Qd8 47. Be4 a5 48. g3 g5 49. hxg5 hxg5 50. Qe3 Qe7 51. Qd4 Qf7 52. Kg1 Kh6 53. Qd8 g4 54. Qh8+ Kg5 55. Qh4# 1-0

[Event "3rd Manaus Open 2024"]
[Site "Manaus"]
[Date "2024.10.16"]
[Round "7.1"]
[White "Leitao, Rafael"]
[Black "Delgado Ramirez, Neuris"]
[Result "1/2-1/2"]
[ECO "E11"]
[WhiteElo "2592"]
[BlackElo "2496"]
[Annotator "TA"]
[PlyCount "41"]
[EventDate "2024.10.05"]
[EventType "swiss"]
[EventCountry "BRA"]
[SourceTitle "playchess.com"]
[Source "ChessBase"]
[SourceQuality "1"]
[TimeControl "5400+30"]

{[%evp 10,41,26,29,35,28,48,46,37,27,15,0,0,0,9,0,0,-11,-12,-17,-17,-28,-12,-8,0,0,0,0,0,0,0,0,0,0]} 1. d4 {[%emt 0:00:45]} Nf6 {[%emt 0:18:34]} 2. c4 {[%emt 0:00:13]} e6 {[%emt 0:00:08]} 3. Nf3 {[%emt 0:00:07]} Bb4+ {[%emt 0:00:05]} 4. Bd2 {[%emt 0:01:44]} Qe7 {[%emt 0:01:22]} 5. g3 {[%emt 0:03:21]} Bxd2+ {[%emt 0:00:41]} 6. Qxd2 {[%emt 0:01:11]} d5 {[%emt 0:00:18]} 7. Bg2 {[%emt 0:01:31]} Nbd7 {[%emt 0:01:41]} 8. O-O {[%emt 0:03:21]} O-O {[%emt 0:00:21] White is slightly better.} 9. Qf4 {[%emt 0:19:56]} c5 {[%emt 0:04:55]} 10. Nc3 {[%emt 0:14:20]} dxc4 {[%emt 0:01:40]} 11. Rfd1 {[%emt 0:06:42]} Nd5 {[%emt 0:04:24]} 12. Nxd5 {[%emt 0:02:16]} exd5 {[%emt 0:00:07]} 13. dxc5 {[%emt 0:00:29]} Qxc5 {[%emt 0:06:17]} 14. Nd4 {[%emt 0:02:37]} Nf6 {[%emt 0:01:26]} 15. b3 {[%emt 0:01:58]} cxb3 {[%emt 0:04:04]} 16. axb3 {[%emt 0:03:28] The position is equal.} Bd7 {[%emt 0:00:38]} 17. Nf5 {[%emt 0:03:03]} Bxf5 {[%emt 0:02:10]} 18. Qxf5 {[%emt 0:00:05][%cal Rg2d5]} Qb6 {[%emt 0:01:10]} 19. Bxd5 {[%emt 0:01:09]} Nxd5 {[%emt 0:00:22]} 20. Qxd5 {[%emt 0:00:14]} Rad8 {[%emt 0:00:26]} 21. Qf3 {[%emt 0:01:12] Weighted Error Value: White=0.05 (flawless) /Black=0.04 (flawless) .  OK:         	White=5     	Black=6} 1/2-1/2